[Event "48th Ciutat de Badalona Open 2024"]
[Site "Badalona"]
[Date "2024.08.02"]
[Round "1.10"]
[White "Romero Funieles, Rafael"]
[Black "Daimiel Bescos, Eleuterio"]
[Result "0-1"]
[ECO "C27"]
[WhiteElo "1683"]
[BlackElo "1895"]
[Annotator "NA"]
[PlyCount "54"]
[EventDate "2024.07.29"]
[EventCountry "ESP"]
[SourceTitle "playchess.com"]
[Source "ChessBase"]
[SourceQuality "1"]
[TimeControl "5400+30"]

1. e4 {[%emt 0:06:48]} e5 {[%emt 0:00:15]} 2. Bc4 {[%emt 0:00:40]} Nf6 {[%emt 0:02:26]} 3. Nc3 {[%emt 0:02:54]} Bc5 {[%emt 0:05:03]} 4. Nf3 {[%emt 0:00:20]} d6 {[%emt 0:01:48]} 5. O-O {[%emt 0:01:08]} Be6 {[%emt 0:03:17]} 6. Bxe6 {[%emt 0:01:50]} fxe6 {[%emt 0:00:23]} 7. d3 {[%emt 0:00:38]} O-O {[%emt 0:01:49]} 8. Bg5 {[%emt 0:00:24]} Qe8 {[%emt 0:01:12]} 9. b3 {[%emt 0:01:43]} a6 {[%emt 0:00:25]} 10. Na4 {[%emt 0:00:31]} Ba7 {[%emt 0:00:33]} 11. c4 {[%emt 0:00:56]} Nc6 {[%emt 0:01:26]} 12. a3 {[%emt 0:00:52]} Qh5 {[%emt 0:08:09]} 13. Bh4 {[%emt 0:04:17]} Rf7 {[%emt 0:04:06]} 14. b4 {[%emt 0:01:24]} Raf8 {[%emt 0:02:05]} 15. Bg3 {[%emt 0:05:43]} Nd4 {[%emt 0:12:52]} 16. Nxd4 {[%emt 0:00:47]} Bxd4 {[%emt 0:00:23]} 17. Rb1 {[%emt 0:06:43]} Qxd1 {[%emt 0:07:04]} 18. Rfxd1 {[%emt 0:00:50]} b5 {[%emt 0:00:28]} 19. cxb5 {[%emt 0:01:48]} axb5 {[%emt 0:00:18]} 20. Nb2 {[%emt 0:01:08]} Nh5 {[%emt 0:00:29]} 21. Rf1 {[%emt 0:02:44]} Nxg3 {[%emt 0:00:34]} 22. hxg3 {[%emt 0:00:36]} Rxf2 {[%emt 0:01:58]} 23. Rxf2 {[%emt 0:02:34]} Rxf2 {[%emt 0:00:17]} 24. Kh2 {[%emt 0:01:44]} Rxb2 {[%emt 0:01:36]} 25. Rc1 {[%emt 0:00:23]} c5 {[%emt 0:00:20]} 26. bxc5 {[%emt 0:01:36]} dxc5 {[%emt 0:00:18]} 27. Rc2 Rxc2 0-1

[Event "48th Ciutat de Badalona Open 2024"]
[Site "Badalona"]
[Date "2024.08.03"]
[Round "2.1"]
[White "Vedant Nitin vekhande"]
[Black "Diaz Perez, Michel Alejandro"]
[Result "1/2-1/2"]
[ECO "B92"]
[WhiteElo "2161"]
[BlackElo "2487"]
[Annotator "RC"]
[PlyCount "245"]
[EventDate "2024.07.29"]
[EventCountry "ESP"]
[SourceTitle "playchess.com"]
[Source "ChessBase"]
[SourceQuality "1"]
[TimeControl "5400+30"]

1. e4 {[%emt 0:00:11]} c5 {[%emt 0:00:23]} 2. Nf3 {[%emt 0:00:11]} d6 {[%emt 0:00:04]} 3. d4 {[%emt 0:00:11]} cxd4 {[%emt 0:00:02]} 4. Nxd4 {[%emt 0:00:13]} Nf6 {[%emt 0:00:03]} 5. Nc3 {[%emt 0:00:14]} a6 {[%emt 0:00:02]} 6. Be2 {[%emt 0:00:15]} e5 {[%emt 0:00:04]} 7. Nb3 {[%emt 0:00:11]} Be7 {[%emt 0:00:02]} 8. O-O {[%emt 0:00:15]} O-O {[%emt 0:00:04]} 9. Kh1 {[%emt 0:00:14]} b6 {[%emt 0:00:03]} 10. f3 {[%emt 0:00:36]} Bb7 {[%emt 0:01:01]} 11. Be3 {[%emt 0:00:14]} Nbd7 {[%emt 0:00:04]} 12. Qe1 {[%emt 0:00:36]} b5 {[%emt 0:03:45]} 13. Rd1 {[%emt 0:01:37]} Qc7 {[%emt 0:16:28]} 14. a3 {[%emt 0:00:20]} h6 {[%emt 0:00:06]} 15. Qf2 {[%emt 0:01:30]} Rfc8 {[%emt 0:01:35]} 16. Rd2 {[%emt 0:01:32]} Bc6 {[%emt 0:01:55]} 17. Nc1 {[%emt 0:01:13]} Rab8 {[%emt 0:00:54]} 18. N1a2 {[%emt 0:00:11]} a5 {[%emt 0:02:07]} 19. b4 {[%emt 0:02:29]} a4 {[%emt 0:12:19]} 20. Rfd1 {[%emt 0:01:03]} Nf8 {[%emt 0:02:41]} 21. Qf1 {[%emt 0:00:50]} Qb7 {[%emt 0:00:51]} 22. Nd5 {[%emt 0:16:06]} Bxd5 {[%emt 0:12:54]} 23. exd5 {[%emt 0:00:02]} e4 {[%emt 0:00:10]} 24. f4 {[%emt 0:02:39]} Ng6 {[%emt 0:03:08]} 25. g3 {[%emt 0:06:00]} Bd8 {[%emt 0:04:52]} 26. c4 {[%emt 0:07:08]} bxc4 {[%emt 0:07:36]} 27. Nc3 {[%emt 0:06:02]} Bb6 {[%emt 0:01:41]} 28. Qg1 {[%emt 0:07:05]} Bxe3 {[%emt 0:05:06]} 29. Qxe3 {[%emt 0:00:02]} Re8 {[%emt 0:00:11]} 30. Rd4 {[%emt 0:05:45]} Ne7 {[%emt 0:04:28]} 31. g4 {[%emt 0:01:09]} Rbc8 {[%emt 0:00:23]} 32. h3 {[%emt 0:01:43]} Ng6 {[%emt 0:02:53]} 33. Bxc4 {[%emt 0:06:13]} Qe7 {[%emt 0:09:25]} 34. Bb5 {[%emt 0:01:47]} Nxg4 {[%emt 0:00:35]} 35. hxg4 {[%emt 0:02:27]} Qh4+ {[%emt 0:00:02]} 36. Kg1 {[%emt 0:04:42]} Qxg4+ {[%emt 0:01:04]} 37. Kf1 {[%emt 0:02:09]} Nxf4 {[%emt 0:03:00]} 38. Bc6 {[%emt 0:11:02]} Qg2+ {[%emt 0:01:26]} 39. Ke1 {[%emt 0:00:04]} Nd3+ {[%emt 0:00:03]} 40. R1xd3 {[%emt 0:02:01]} exd3 {[%emt 0:01:27]} 41. Bxe8 {[%emt 0:01:23]} Rxc3 {[%emt 0:01:48]} 42. Bxf7+ {[%emt 0:00:23]} Kh7 {[%emt 0:00:08]} 43. Qe4+ {[%emt 0:02:51]} Qxe4+ {[%emt 0:00:02]} 44. Rxe4 {[%emt 0:00:01]} Rxa3 {[%emt 0:00:15]} 45. Re6 {[%emt 0:01:08]} g5 {[%emt 0:01:19]} 46. Kd2 {[%emt 0:02:14]} Rb3 {[%emt 0:02:26]} 47. Bg6+ {[%emt 0:01:23]} Kg7 {[%emt 0:00:01]} 48. Bxd3 {[%emt 0:00:11]} Rxb4 {[%emt 0:00:32]} 49. Rg6+ {[%emt 0:01:04]} Kf7 {[%emt 0:00:01]} 50. Rxd6 {[%emt 0:00:10]} h5 {[%emt 0:01:07]} 51. Bg6+ {[%emt 0:03:56]} Ke7 {[%emt 0:00:01]} 52. Re6+ {[%emt 0:00:15]} Kd7 {[%emt 0:00:01]} 53. Bxh5 {[%emt 0:00:34]} Rd4+ {[%emt 0:02:35]} 54. Ke3 {[%emt 0:00:03]} Rxd5 {[%emt 0:00:45]} 55. Bg4 {[%emt 0:00:35]} Kc7 {[%emt 0:00:21]} 56. Ra6 {[%emt 0:00:19]} Re5+ {[%emt 0:00:45]} 57. Kf3 {[%emt 0:00:05]} Rc5 {[%emt 0:00:57]} 58. Rxa4 {[%emt 0:00:33]} Kd6 {[%emt 0:00:01]} 59. Bh5 {[%emt 0:01:02]} Rf5+ {[%emt 0:00:46]} 60. Kg3 {[%emt 0:00:16]} Ke7 {[%emt 0:00:03]} 61. Ra7+ {[%emt 0:00:13]} Kd6 {[%emt 0:00:40]} 62. Ra6+ {[%emt 0:00:24]} Kc7 {[%emt 0:00:10]} 63. Kg4 {[%emt 0:00:29]} Rc5 {[%emt 0:00:05]} 64. Bg6 {[%emt 0:00:09]} Rc6 {[%emt 0:00:29]} 65. Ra7+ {[%emt 0:00:04]} Kb6 {[%emt 0:00:31]} 66. Rg7 {[%emt 0:00:04]} Rc7 {[%emt 0:00:33]} 67. Rg8 {[%emt 0:00:06]} Rc5 {[%emt 0:00:01]} 68. Bf5 {[%emt 0:00:21]} Rc1 {[%emt 0:00:07]} 69. Rb8+ {[%emt 0:00:14]} Ka7 {[%emt 0:00:00]} 70. Rb3 {[%emt 0:00:14]} Rg1+ {[%emt 0:00:06]} 71. Kh5 {[%emt 0:00:06]} Rg2 {[%emt 0:01:01]} 72. Bg4 {[%emt 0:00:13]} Rc2 {[%emt 0:00:02]} 73. Kxg5 {[%emt 0:00:06]} Rc6 {[%emt 0:00:10]} 74. Kf5 {[%emt 0:00:43]} Rb6 {[%emt 0:00:06]} 75. Rc3 {[%emt 0:00:10]} Rb5+ {[%emt 0:00:41]} 76. Ke6 {[%emt 0:00:15]} Kb6 {[%emt 0:01:13]} 77. Kd6 {[%emt 0:00:06]} Rb4 {[%emt 0:01:29]} 78. Be6 {[%emt 0:00:53]} Rb5 {[%emt 0:00:06]} 79. Bd5 {[%emt 0:00:10]} Rb4 {[%emt 0:00:07]} 80. Rc8 {[%emt 0:00:39]} Rb5 {[%emt 0:00:08]} 81. Rc6+ {[%emt 0:00:55]} Ka5 {[%emt 0:00:19]} 82. Rc2 {[%emt 0:00:27]} Kb6 {[%emt 0:00:11]} 83. Rc1 {[%emt 0:01:57]} Rb4 {[%emt 0:00:07]} 84. Rc8 {[%emt 0:00:20]} Rb5 {[%emt 0:00:08]} 85. Bc6 {[%emt 0:01:08]} Rb4 {[%emt 0:00:12]} 86. Kd5 {[%emt 0:00:48]} Ka5 {[%emt 0:01:27]} 87. Re8 {[%emt 0:04:32]} Kb6 {[%emt 0:00:08]} 88. Ra8 {[%emt 0:00:44]} Rh4 {[%emt 0:01:56]} 89. Rb8+ {[%emt 0:00:06]} Kc7 {[%emt 0:00:13]} 90. Rb7+ {[%emt 0:00:07]} Kd8 {[%emt 0:00:00]} 91. Rd7+ {[%emt 0:00:19]} Kc8 {[%emt 0:01:34]} 92. Rg7 {[%emt 0:01:04]} Rh2 {[%emt 0:01:05]} 93. Kc5 {[%emt 0:00:45]} Kd8 {[%emt 0:00:54]} 94. Bd5 {[%emt 0:00:40]} Rh6 {[%emt 0:00:23]} 95. Kd4 {[%emt 0:00:38]} Rd6 {[%emt 0:00:08]} 96. Rg8+ {[%emt 0:00:58]} Ke7 {[%emt 0:00:16]} 97. Ke5 {[%emt 0:00:15]} Re6+ {[%emt 0:00:58]} 98. Kd4 {[%emt 0:00:26]} Rd6 {[%emt 0:00:01]} 99. Rg7+ {[%emt 0:00:41]} Kd8 {[%emt 0:00:04]} 100. Kc5 {[%emt 0:00:34]} Rd7 {[%emt 0:00:00]} 101. Rg4 {[%emt 0:00:30]} Kc7 {[%emt 0:00:14]} 102. Ra4 {[%emt 0:00:21]} Re7 {[%emt 0:00:01]} 103. Ra8 {[%emt 0:00:25]} Rd7 {[%emt 0:00:10]} 104. Bc6 {[%emt 0:00:17]} Re7 {[%emt 0:00:06]} 105. Rh8 {[%emt 0:00:54]} Re5+ {[%emt 0:00:03]} 106. Bd5 {[%emt 0:00:06]} Re7 {[%emt 0:00:05]} 107. Rf8 {[%emt 0:00:27]} Rd7 {[%emt 0:00:09]} 108. Be6 {[%emt 0:00:20]} Re7 {[%emt 0:00:01]} 109. Bd5 {[%emt 0:00:41]} Rd7 {[%emt 0:00:07]} 110. Rf6 {[%emt 0:00:29]} Re7 {[%emt 0:00:07]} 111. Rb6 {[%emt 0:00:24]} Rd7 {[%emt 0:00:12]} 112. Bc6 {[%emt 0:00:30]} Re7 {[%emt 0:00:20]} 113. Rb7+ {[%emt 0:00:50]} Kd8 {[%emt 0:00:01]} 114. Rb1 {[%emt 0:00:11]} Kc7 {[%emt 0:00:04]} 115. Bd5 {[%emt 0:00:16]} Rd7 {[%emt 0:00:04]} 116. Ra1 {[%emt 0:01:02]} Re7 {[%emt 0:00:12]} 117. Ra6 {[%emt 0:00:26]} Rd7 {[%emt 0:00:06]} 118. Be6 {[%emt 0:00:30]} Re7 {[%emt 0:00:23]} 119. Rc6+ {[%emt 0:00:12]} Kb7 {[%emt 0:00:55]} 120. Kb5 {[%emt 0:00:27]} Kb8 {[%emt 0:00:28]} 121. Bc4 {[%emt 0:01:19]} Rb7+ {[%emt 0:00:32]} 122. Ka5 {[%emt 0:00:16]} Rc7 {[%emt 0:00:34]} 123. Rb6+ {[%emt 0:00:10]} 1/2-1/2

[Event "48th Ciutat de Badalona Open 2024"]
[Site "Badalona"]
[Date "2024.08.03"]
[Round "2.2"]
[White "Berdayes Ason, Dylan Isidro"]
[Black "Campins Machado, Francesc"]
[Result "1-0"]
[ECO "B41"]
[WhiteElo "2476"]
[BlackElo "2148"]
[Annotator "RC"]
[PlyCount "67"]
[EventDate "2024.07.29"]
[EventCountry "ESP"]
[SourceTitle "playchess.com"]
[Source "ChessBase"]
[SourceQuality "1"]
[TimeControl "5400+30"]

1. e4 {[%emt 1:31:00]} c5 {[%emt 0:05:00]} 2. Nf3 {[%emt 0:00:00]} e6 {[%emt 0:00:08]} 3. d4 {[%emt 0:00:00]} cxd4 {[%emt 0:00:33]} 4. Nxd4 {[%emt 0:00:00]} a6 {[%emt 0:00:08]} 5. c4 {[%emt 0:00:00]} Nf6 {[%emt 0:00:11]} 6. Nc3 {[%emt 0:00:00]} Bb4 {[%emt 0:00:30]} 7. Qd3 {[%emt 0:00:00]} d5 {[%emt 0:00:37]} 8. exd5 {[%emt 0:00:00]} exd5 {[%emt 0:00:05]} 9. Be2 {[%emt 0:00:00]} O-O {[%emt 0:01:08]} 10. O-O {[%emt 0:00:00]} Nc6 {[%emt 0:01:27]} 11. Nxc6 {[%emt 0:00:00]} bxc6 {[%emt 0:00:31]} 12. Rd1 {[%emt 0:00:00]} Be6 {[%emt 0:10:52]} 13. Bg5 {[%emt 0:00:00]} Be7 {[%emt 0:04:56]} 14. Qc2 {[%emt 0:00:00]} Qa5 {[%emt 0:18:12]} 15. cxd5 {[%emt 0:00:00]} Nxd5 {[%emt 0:18:45]} 16. Rxd5 {[%emt 0:00:00]} cxd5 {[%emt 0:07:06]} 17. Bxe7 {[%emt 0:00:00]} Rfe8 {[%emt 0:00:03]} 18. b4 {[%emt 0:00:00]} Qc7 {[%emt 0:03:30]} 19. Bc5 {[%emt 0:00:00]} a5 {[%emt 0:02:35]} 20. Qd2 {[%emt 0:00:00]} axb4 {[%emt 0:02:54]} 21. Bxb4 {[%emt 0:00:00]} d4 {[%emt 0:03:18]} 22. Nb5 {[%emt 0:00:00]} Qe5 {[%emt 0:02:24]} 23. f4 {[%emt 0:00:00]} Qf6 {[%emt 0:08:24]} 24. Bf3 {[%emt 0:00:00]} Ra4 {[%emt 0:02:29]} 25. a3 {[%emt 0:00:00]} Rb8 {[%emt 0:03:08]} 26. Qd1 {[%emt 0:00:00]} Ra6 {[%emt 0:01:28]} 27. Nc7 {[%emt 0:00:00]} Rab6 {[%emt 0:00:53]} 28. Qd2 {[%emt 0:00:00]} Rc8 {[%emt 0:02:22]} 29. Nxe6 {[%emt 0:00:00]} fxe6 {[%emt 0:00:13]} 30. Rd1 {[%emt 0:00:00]} d3 {[%emt 0:00:56]} 31. Qe3 {[%emt 0:00:00]} Rb5 {[%emt 0:00:43]} 32. Rxd3 {[%emt 0:00:00]} h6 {[%emt 0:00:22]} 33. h3 {[%emt 0:00:00]} Rf5 {[%emt 0:00:21]} 34. Bg4 {[%emt 0:00:00]} 1-0

[Event "48th Ciutat de Badalona Open 2024"]
[Site "Badalona"]
[Date "2024.08.03"]
[Round "2.3"]
[White "Singh, Siddharth"]
[Black "Vitier Vazquez, Cristian"]
[Result "1/2-1/2"]
[ECO "B33"]
[WhiteElo "2130"]
[BlackElo "2357"]
[Annotator "RC"]
[PlyCount "103"]
[EventDate "2024.07.29"]
[EventCountry "ESP"]
[SourceTitle "playchess.com"]
[Source "ChessBase"]
[SourceQuality "1"]
[TimeControl "5400+30"]

1. e4 {[%emt 0:00:03]} c5 {[%emt 0:01:12]} 2. Nf3 {[%emt 0:00:07]} e6 {[%emt 0:00:17]} 3. d4 {[%emt 0:00:07]} cxd4 {[%emt 0:00:07]} 4. Nxd4 {[%emt 0:00:07]} Nf6 {[%emt 0:00:49]} 5. Nc3 {[%emt 0:00:09]} Nc6 {[%emt 0:00:08]} 6. Ndb5 {[%emt 0:00:08]} d6 {[%emt 0:00:21]} 7. Bf4 {[%emt 0:00:07]} e5 {[%emt 0:00:09]} 8. Bg5 {[%emt 0:00:04]} a6 {[%emt 0:00:11]} 9. Na3 {[%emt 0:00:05]} b5 {[%emt 0:00:05]} 10. Nab1 {[%emt 0:00:06]} Be7 {[%emt 0:00:18]} 11. Bxf6 {[%emt 0:00:07]} Bxf6 {[%emt 0:00:07]} 12. a4 {[%emt 0:00:07]} b4 {[%emt 0:00:06]} 13. Nd5 {[%emt 0:00:07]} O-O {[%emt 0:00:26]} 14. Bc4 {[%emt 0:00:11]} Be6 {[%emt 0:00:15]} 15. O-O {[%emt 0:00:13]} Bg5 {[%emt 0:00:28]} 16. Qd3 {[%emt 0:01:35]} a5 {[%emt 0:00:08]} 17. c3 {[%emt 0:01:20]} Rc8 {[%emt 0:00:09]} 18. Rd1 {[%emt 0:00:31]} bxc3 {[%emt 0:01:29]} 19. Nbxc3 {[%emt 0:00:09]} Nb4 {[%emt 0:00:13]} 20. Qe2 {[%emt 0:00:07]} h5 {[%emt 0:00:41]} 21. h3 {[%emt 0:00:06]} g6 {[%emt 0:08:11]} 22. b3 {[%emt 0:00:10]} Nxd5 {[%emt 0:00:19]} 23. Nxd5 {[%emt 0:00:10]} Rc5 {[%emt 0:02:30]} 24. Rd3 {[%emt 0:13:57]} Kg7 {[%emt 0:08:23]} 25. Rad1 {[%emt 0:03:58]} Qb8 {[%emt 0:04:08]} 26. Kh1 {[%emt 0:17:47]} Rd8 {[%emt 0:20:48]} 27. Qe1 {[%emt 0:13:47]} Qb7 {[%emt 0:15:49]} 28. Bb5 {[%emt 0:06:31]} Qa7 {[%emt 0:02:10]} 29. Bc4 {[%emt 0:07:08]} Qb7 {[%emt 0:01:21]} 30. Bb5 {[%emt 0:02:01]} Qa7 {[%emt 0:03:14]} 31. Bc4 {[%emt 0:00:36]} Qb7 {[%emt 0:04:52]} 32. f3 {[%emt 0:04:14]} Qb8 {[%emt 0:13:24]} 33. Qg3 {[%emt 0:03:32]} Bxd5 {[%emt 0:00:41]} 34. Rxd5 {[%emt 0:01:14]} Be3 {[%emt 0:01:33]} 35. Qe1 {[%emt 0:01:09]} Rxd5 {[%emt 0:00:42]} 36. Rxd5 {[%emt 0:00:51]} Bb6 {[%emt 0:00:05]} 37. Qd2 {[%emt 0:00:37]} Qc7 {[%emt 0:00:23]} 38. Rb5 {[%emt 0:02:37]} Rd7 {[%emt 0:04:50]} 39. Rd5 {[%emt 0:01:35]} Bc5 {[%emt 0:00:48]} 40. f4 {[%emt 0:02:22]} exf4 {[%emt 0:00:44]} 41. Qxf4 {[%emt 0:00:26]} Re7 {[%emt 0:00:24]} 42. Rd1 {[%emt 0:08:12]} Bb4 {[%emt 0:02:59]} 43. Qf3 {[%emt 0:01:12]} Qc5 {[%emt 0:02:52]} 44. Rf1 {[%emt 0:03:06]} Qe5 {[%emt 0:00:06]} 45. Bxf7 {[%emt 0:00:37]} Qxe4 {[%emt 0:00:11]} 46. Qf6+ {[%emt 0:00:23]} Kh6 {[%emt 0:00:39]} 47. h4 {[%emt 0:09:30]} Rxf7 {[%emt 0:01:08]} 48. Qh8+ {[%emt 0:00:06]} Rh7 {[%emt 0:00:06]} 49. Qf8+ {[%emt 0:00:06]} Rg7 {[%emt 0:00:11]} 50. Qh8+ {[%emt 0:00:10]} Rh7 {[%emt 0:00:06]} 51. Qf8+ {[%emt 0:00:23]} Rg7 {[%emt 0:00:08]} 52. Qh8+ {[%emt 0:00:07]} 1/2-1/2

[Event "48th Ciutat de Badalona Open 2024"]
[Site "Badalona"]
[Date "2024.08.03"]
[Round "2.4"]
[White "Utsab Chatterjee"]
[Black "Vaibhav Jayant Raut"]
[Result "1/2-1/2"]
[ECO "B46"]
[WhiteElo "2289"]
[BlackElo "2101"]
[Annotator "RC"]
[PlyCount "237"]
[EventDate "2024.07.29"]
[EventCountry "ESP"]
[SourceTitle "playchess.com"]
[Source "ChessBase"]
[SourceQuality "1"]
[TimeControl "5400+30"]

1. e4 {[%emt 0:00:12]} c5 {[%emt 0:00:27]} 2. Nf3 {[%emt 0:00:21]} Nc6 {[%emt 0:00:08]} 3. Bb5 {[%emt 0:00:14]} e6 {[%emt 0:00:16]} 4. O-O {[%emt 0:01:42]} Nge7 {[%emt 0:00:07]} 5. d4 {[%emt 0:00:16]} cxd4 {[%emt 0:02:38]} 6. Nxd4 {[%emt 0:00:06]} Ng6 {[%emt 0:10:56]} 7. Nc3 {[%emt 0:05:37]} a6 {[%emt 0:01:40]} 8. Be2 {[%emt 0:01:30]} Be7 {[%emt 0:05:39]} 9. Be3 {[%emt 0:00:31]} O-O {[%emt 0:00:54]} 10. f4 {[%emt 0:05:12]} b5 {[%emt 0:12:07]} 11. Nb3 {[%emt 0:19:14]} d6 {[%emt 0:01:36]} 12. Qd2 {[%emt 0:00:43]} Bb7 {[%emt 0:00:21]} 13. a4 {[%emt 0:02:51]} b4 {[%emt 0:04:31]} 14. Na2 {[%emt 0:00:02]} a5 {[%emt 0:00:20]} 15. c3 {[%emt 0:00:19]} bxc3 {[%emt 0:00:53]} 16. Nxc3 {[%emt 0:00:27]} Nb4 {[%emt 0:00:21]} 17. Rad1 {[%emt 0:06:37]} Rc8 {[%emt 0:05:04]} 18. Nd4 {[%emt 0:53:36]} d5 {[%emt 0:11:36]} 19. f5 {[%emt 0:00:00]} exf5 {[%emt 0:01:20]} 20. exd5 {[%emt 0:00:00]} f4 {[%emt 0:10:21]} 21. Bxf4 {[%emt 0:00:00]} Nxd5 {[%emt 0:01:41]} 22. Nxd5 {[%emt 0:00:00]} Qxd5 {[%emt 0:04:21]} 23. Bf3 {[%emt 0:00:00]} Qd7 {[%emt 0:00:17]} 24. Nb3 {[%emt 0:00:00]} Qxd2 {[%emt 0:06:16]} 25. Bxd2 {[%emt 0:00:00]} Bxf3 {[%emt 0:02:08]} 26. Rxf3 {[%emt 0:00:00]} Ne5 {[%emt 0:01:15]} 27. Rc3 {[%emt 0:00:00]} Nc4 {[%emt 0:03:40]} 28. Nxa5 {[%emt 0:00:00]} Nxb2 {[%emt 0:02:15]} 29. Ra1 {[%emt 0:00:00]} Bf6 {[%emt 0:01:40]} 30. Rxc8 {[%emt 0:00:00]} Rxc8 {[%emt 0:00:02]} 31. Ra2 {[%emt 0:00:00]} Rd8 {[%emt 0:01:10]} 32. Be3 {[%emt 0:00:00]} Re8 {[%emt 0:01:08]} 33. Bf2 {[%emt 0:00:00]} Re4 {[%emt 0:00:49]} 34. Nb3 {[%emt 0:00:00]} Rxa4 {[%emt 0:00:29]} 35. Rxa4 {[%emt 0:00:00]} Nxa4 {[%emt 0:00:01]} 36. g3 {[%emt 0:00:00]} Nc3 {[%emt 0:01:03]} 37. Kg2 {[%emt 0:00:00]} Be5 {[%emt 0:00:20]} 38. Kf3 {[%emt 0:00:00]} f6 {[%emt 0:00:11]} 39. Nc5 {[%emt 0:00:00]} Kf7 {[%emt 0:00:07]} 40. h4 {[%emt 0:00:00]} h5 {[%emt 0:01:04]} 41. Nd3 {[%emt 0:00:00]} Ke6 {[%emt 0:00:35]} 42. Nf4+ {[%emt 0:03:18]} Bxf4 {[%emt 0:00:46]} 43. Kxf4 {[%emt 0:00:02]} Nd5+ {[%emt 0:00:33]} 44. Ke4 {[%emt 0:00:08]} g5 {[%emt 0:02:04]} 45. hxg5 {[%emt 0:00:25]} fxg5 {[%emt 0:00:06]} 46. Ba7 {[%emt 0:00:55]} Nf6+ {[%emt 0:00:38]} 47. Kf3 {[%emt 0:00:10]} Kf5 {[%emt 0:00:15]} 48. Bb8 {[%emt 0:00:37]} Nd5 {[%emt 0:01:53]} 49. Bd6 {[%emt 0:00:39]} g4+ {[%emt 0:00:27]} 50. Kf2 {[%emt 0:00:09]} Ke4 {[%emt 0:00:21]} 51. Bc5 {[%emt 0:00:28]} Kd3 {[%emt 0:00:24]} 52. Bd6 {[%emt 0:00:33]} Ne3 {[%emt 0:01:36]} 53. Bf4 {[%emt 0:00:31]} Nd1+ {[%emt 0:00:24]} 54. Ke1 {[%emt 0:00:01]} Nc3 {[%emt 0:00:16]} 55. Kf2 {[%emt 0:00:12]} Kd4 {[%emt 0:03:39]} 56. Bb8 {[%emt 0:00:41]} Ke4 {[%emt 0:00:51]} 57. Bc7 {[%emt 0:00:54]} Nb5 {[%emt 0:00:20]} 58. Bb8 {[%emt 0:00:12]} Kd3 {[%emt 0:00:34]} 59. Be5 {[%emt 0:00:11]} Nd4 {[%emt 0:02:24]} 60. Bf4 {[%emt 0:00:34]} Ke4 {[%emt 0:00:24]} 61. Bb8 {[%emt 0:00:16]} Kd3 {[%emt 0:00:40]} 62. Bf4 {[%emt 0:00:02]} Ne6 {[%emt 0:00:04]} 63. Be3 {[%emt 0:00:16]} Ng7 {[%emt 0:00:49]} 64. Bh6 {[%emt 0:00:31]} Nf5 {[%emt 0:00:17]} 65. Bf4 {[%emt 0:00:31]} Kc2 {[%emt 0:00:12]} 66. Ke2 {[%emt 0:00:14]} Nd4+ {[%emt 0:00:03]} 67. Ke1 {[%emt 0:00:49]} Nf3+ {[%emt 0:00:42]} 68. Ke2 {[%emt 0:00:50]} Ng1+ {[%emt 0:00:39]} 69. Ke1 {[%emt 0:00:46]} Kd3 {[%emt 0:01:08]} 70. Bh6 {[%emt 0:00:02]} Nf3+ {[%emt 0:00:35]} 71. Kf2 {[%emt 0:00:02]} Nd2 {[%emt 0:00:18]} 72. Bf4 {[%emt 0:00:16]} Ne4+ {[%emt 0:00:44]} 73. Ke1 {[%emt 0:00:02]} Nc5 {[%emt 0:00:31]} 74. Kf2 {[%emt 0:00:11]} Ne6 {[%emt 0:00:33]} 75. Be3 {[%emt 0:00:01]} Kc2 {[%emt 0:00:29]} 76. Ke2 {[%emt 0:00:05]} Ng7 {[%emt 0:00:05]} 77. Bh6 {[%emt 0:00:24]} Nf5 {[%emt 0:00:12]} 78. Bf4 {[%emt 0:00:01]} Nd4+ {[%emt 0:00:14]} 79. Ke1 {[%emt 0:00:02]} Kd3 {[%emt 0:00:36]} 80. Kf2 {[%emt 0:00:19]} Nb5 {[%emt 0:00:24]} 81. Bg5 {[%emt 0:00:53]} Ke4 {[%emt 0:00:15]} 82. Bh6 {[%emt 0:00:16]} Nc3 {[%emt 0:00:08]} 83. Bd2 {[%emt 0:00:12]} Nd1+ {[%emt 0:00:53]} 84. Ke2 {[%emt 0:00:06]} h4 {[%emt 0:01:09]} 85. gxh4 {[%emt 0:00:14]} g3 {[%emt 0:00:09]} 86. Be1 {[%emt 0:00:04]} g2 {[%emt 0:00:39]} 87. Bf2 {[%emt 0:00:02]} Nc3+ {[%emt 0:00:11]} 88. Ke1 {[%emt 0:00:38]} Kf3 {[%emt 0:01:24]} 89. Ba7 {[%emt 0:00:13]} Ne4 {[%emt 0:00:37]} 90. Bg1 {[%emt 0:03:08]} Ng3 {[%emt 0:00:36]} 91. Ba7 {[%emt 0:01:08]} Nf5 {[%emt 0:00:16]} 92. Bf2 {[%emt 0:00:23]} Nxh4 {[%emt 0:00:07]} 93. Bg1 {[%emt 0:00:05]} Ng6 {[%emt 0:00:39]} 94. Ba7 {[%emt 0:00:55]} Nf4 {[%emt 0:00:38]} 95. Kd2 {[%emt 0:00:13]} Kg3 {[%emt 0:00:36]} 96. Bb6 {[%emt 0:01:45]} Kf3 {[%emt 0:00:25]} 97. Ba7 {[%emt 0:00:02]} Ne2 {[%emt 0:00:24]} 98. Bb6 {[%emt 0:00:18]} Ng3 {[%emt 0:00:06]} 99. Ba7 {[%emt 0:00:10]} Nf1+ {[%emt 0:00:14]} 100. Kd3 {[%emt 0:00:07]} Nh2 {[%emt 0:00:33]} 101. Kd2 {[%emt 0:00:37]} Ng4 {[%emt 0:00:08]} 102. Bg1 {[%emt 0:00:08]} Ne5 {[%emt 0:00:52]} 103. Ke1 {[%emt 0:00:37]} Nc4 {[%emt 0:00:19]} 104. Bf2 {[%emt 0:00:09]} Ne5 {[%emt 0:00:23]} 105. Bg1 {[%emt 0:00:06]} Ng4 {[%emt 0:00:17]} 106. Kd2 {[%emt 0:00:07]} Nf2 {[%emt 0:00:08]} 107. Ke1 {[%emt 0:00:06]} Ne4 {[%emt 0:00:28]} 108. Ba7 {[%emt 0:00:22]} Kg3 {[%emt 0:00:13]} 109. Ke2 {[%emt 0:00:26]} Kh2 {[%emt 0:00:36]} 110. Ke1 {[%emt 0:00:16]} Nc3 {[%emt 0:00:19]} 111. Bb6 {[%emt 0:00:12]} Kg3 {[%emt 0:01:53]} 112. Ba7 {[%emt 0:00:18]} Kf3 {[%emt 0:00:06]} 113. Bg1 {[%emt 0:00:35]} Nd5 {[%emt 0:00:06]} 114. Bf2 {[%emt 0:00:05]} Nf4 {[%emt 0:00:19]} 115. Bg1 {[%emt 0:00:07]} Nd3+ {[%emt 0:00:20]} 116. Kd2 {[%emt 0:00:05]} Nf2 {[%emt 0:00:03]} 117. Ke1 {[%emt 0:00:07]} Nh3 {[%emt 0:00:48]} 118. Ba7 {[%emt 0:00:07]} g1=Q+ {[%emt 0:00:04]} 119. Bxg1 {[%emt 0:18:48]} 1/2-1/2

[Event "48th Ciutat de Badalona Open 2024"]
[Site "Badalona"]
[Date "2024.08.03"]
[Round "2.5"]
[White "Huh, Isaak"]
[Black "Pawar, Harshit"]
[Result "0-1"]
[ECO "C11"]
[WhiteElo "2082"]
[BlackElo "2284"]
[Annotator "ChessBase"]
[PlyCount "54"]
[EventDate "2024.07.29"]
[EventCountry "ESP"]
[SourceTitle "playchess.com"]
[Source "ChessBase"]
[SourceQuality "1"]
[TimeControl "5400+30"]

1. e4 {[%emt 0:00:03]} e6 {[%emt 0:06:56]} 2. d4 {[%emt 0:00:04]} d5 {[%emt 0:01:03]} 3. Nc3 {[%emt 0:00:05]} Nf6 {[%emt 0:00:24]} 4. e5 {[%emt 0:00:06]} Nfd7 {[%emt 0:00:04]} 5. f4 {[%emt 0:00:06]} c5 {[%emt 0:00:04]} 6. Nf3 {[%emt 0:00:04]} Nc6 {[%emt 0:00:04]} 7. Be3 {[%emt 0:00:04]} Be7 {[%emt 0:01:23]} 8. dxc5 {[%emt 0:00:05]} Nxc5 {[%emt 0:01:12]} 9. Be2 {[%emt 0:00:24]} O-O {[%emt 0:01:42]} 10. O-O {[%emt 0:01:22]} b6 {[%emt 0:00:59]} 11. Nb5 {[%emt 0:06:49]} Ne4 {[%emt 0:12:37]} 12. c3 {[%emt 0:04:21]} Bc5 {[%emt 0:07:36]} 13. Nbd4 {[%emt 0:02:14]} f5 {[%emt 0:03:08]} 14. exf6 {[%emt 0:20:41]} Qxf6 {[%emt 0:01:03]} 15. Qd3 {[%emt 0:01:14]} Bb7 {[%emt 0:07:00]} 16. Nxc6 {[%emt 0:05:26]} Ba6 {[%emt 0:02:44]} 17. Qxa6 {[%emt 0:11:20]} Bxe3+ {[%emt 0:00:42]} 18. Kh1 {[%emt 0:00:05]} Qh6 {[%emt 0:00:14]} 19. Nh4 {[%emt 0:23:02]} Qxh4 {[%emt 0:00:55]} 20. Rf3 {[%emt 0:00:05]} Bxf4 {[%emt 0:00:36]} 21. h3 {[%emt 0:02:19]} Bd6 {[%emt 0:00:53]} 22. Nd4 {[%emt 0:08:18]} Rxf3 {[%emt 0:00:26]} 23. Nxf3 {[%emt 0:00:08]} Qf2 {[%emt 0:00:08]} 24. Bd3 {[%emt 0:01:41]} Ng3+ {[%emt 0:00:49]} 25. Kh2 {[%emt 0:00:02]} Rf8 {[%emt 0:01:24]} 26. Nd4 {[%emt 0:00:28]} Ne2+ {[%emt 0:00:18]} 27. Kh1 {[%emt 0:00:14]} Qf1+ {[%emt 0:00:04]} 0-1